Workbook

Sheet PFP
A1: PROPOSTA FINANCEIRA DE PROJETO | N1: CODIGO:
N2: PFP
A3: NOME DA CONSULTORA:
A5: PROJETO: | F5: OBJETO: | O5: EDITAL:
A6: Januária | F6: Projeto do SAA de comunidades
A7: SERVIÇOS
A8: CUSTOS DIRETOS | N8: =SUM(N10+N14+N17+N18+N25) -> 0
A9: MOBILIZAÇÃO/DESMOBILIZAÇÃO
A10: A - TOTAL DA MOBILIZAÇÃO/DESMOBILIZAÇÃO | N10: =N11+N12 -> 0
A11: A1 - MOBILIZAÇÃO (PFP-XII) | N11: 0
A12: A2 - DESMOBILIZAÇÃO (PFP-XII) | N12: 0
A13: MÃO-DE-OBRA
A14: B - TOTAL DE SALÁRIO DA EQUIPE | N14: =SUM(N15:O16) -> 0
A15: B1 - TOTAL SALÁRIOS DA EQUIPE COM VÍNCULO (PFP-I) | N15: ='PFP_I Equip Proj'!D40 -> 0
A16: B2 - TOTAL SALÁRIO DO AUTÔNOMO (PFP-I) | N16: ='PFP_I Equip Proj'!E40 -> 0
A17: B3 - TRANSP., ALIMENT. E MORADIA CONFORME CLT (SOMATÓRIO DA LINHA "C" DOS (PFP-XI)
A18: C - TOTAL DE ENCARGOS SOCIAIS | N18: =SUM(N19:O20) -> 0
A19: C1 - 77,25% INCIDENTE SOBRE O ITEM B1 | N19: ='PFP_I Equip Proj'!F40 -> 0
A20: C2 - 20% INCIDENTE SOBRE O ITEM B2 | N20: ='PFP_I Equip Proj'!G40 -> 0
A21: OUTRAS DESPESAS
A22: D - DESPESAS COM VIAGENS (PFP-II) | N22: ='PFP_II Desp Viagens'!L30 -> 0
A23: E - SERVIÇOS GRÁFICOS (PFP-III) | N23: ='PFP_III Ser Graf'!G35 -> 0
A24: F - DESPESAS GERAIS (PFP-IV) | N24: ='PFP_IV Desp Gerais'!H42:H42 -> 0
A25: TOTAL DE OUTRAS DESPESAS | N25: =N22+N23+N24 -> 0
A26: CUSTOS INDIRETOS | N26: =N27+N28+N29 -> 0
A27: G - CUSTO DE ADMINISTRAÇÃO - (12% DO ITEM B) (PFP-XIII) | N27: ='PFP_XIII_ Det_ custos Adm_'!G36 -> 0
A28: H - REMUNERAÇÃO DA EMPRESA (LUCRO) - (8% DOS ITENS A+B+C+D+E+F+G) | N28: =0.08*(N10+N14+N18+N22+N23+N24+N27) -> 0
A29: I - DESPESAS FISCAIS - (13,96% = DF' DOS ITENS A+B+C+D+E+F+G+H) (PFP-XIV) | N29: =0.1396*(PFP!N10+PFP!N14+PFP!N18+PFP!N22+PFP!N23+PFP!N24+PFP!N27+PFP!N28) -> 0
A30: SUB-TOTAL TOTAL DOS SERVIÇOS | N30: =N8+N26 -> 0
A31: SERVIÇOS DE CAMPO
A32: J1 - SERVIÇOS TOPOGRÁFICOS (PFP-V) | N32: ='PFP_V Topografia'!G45 -> 0
A33: J2 - SERVIÇOS GEOTÉCNICOS (PFP-VII) | N33: ='PFP_VII Geotecnia'!G66 -> 0
A34: J3 - SERVIÇOS AUXILIARES (PFE_I) | N34: =PFE_I!G45 -> 0
A35: TOTAL DOS SERVIÇOS DE CAMPO | N35: =SUM(N32:O34) -> 0
A36: TOTAL DA PROPOSTA | N36: =N30+N35 -> 0
A37: NOME DO INFORMANTE: | J37: QUALIFICAÇÃO:
A39: ASSINATURA: | N39: DATA:
A41: OBSERVAÇÃO:
A42: ESTE ORÇAMENTO FOI CALCULADO COM OS SEGUINTES % MÁXIMOS DE ENCARGOS SOCIAIS E CUSTOS INDIRETOS:
A43: 1. ENCARGOS SOCIAIS DE AUTÔNOMOS = 20% SOBRE O SALÁRIO MENSAL
A44: 2. ENCARGOS SOCIAIS DA EQUIPE COM VÍNCULO = 77,25% SOBRE O SALÁRIO MENSAL
A45: 3. CUSTO DE ADMINISTRAÇÃO = 12% SOBRE O TOTAL DE SALÁRIOS DA EQUIPE (B1 + B2)
A46: 4. REMUNERAÇÃO DA EMPRESA (LUCRO) = 8% SOBRE OS ITENS DE CUSTOS DIRETOS + CUSTO DE ADMINISTRAÇÃO
A47: 5. DF = A SOMA DOS TRIBUTOS (EX: ISS 3,00 + PIS 1,65 + COFINS 7,60 = 12,25%)
A48: 6. DF' = UTILIZADO NA LINHA "I" SERÁ CALCULADO APLICANDO A SEGUINTE FÓRMULA:
A49: DF' = { [ 1 / ( 1 - DF) ] - 1 } x 100
A50: DF' = { [ 1 / ( 1 - 0,1225 ) ] - 1 } x 100
A51: DF' = 0,1396 ou 13,96%

Sheet PFP em branco
A1: PROPOSTA FINANCEIRA DE PROJETO | N1: CODIGO:
N2: PFP
A3: NOME DA CONSULTORA:
A5: PROJETO: | F5: OBJETO: | O5: EDITAL:
A6: Januária | F6: Projeto do SAA de comunidades
A7: SERVIÇOS
A8: CUSTOS DIRETOS | N8: 0
A9: MOBILIZAÇÃO/DESMOBILIZAÇÃO
A10: A - TOTAL DA MOBILIZAÇÃO/DESMOBILIZAÇÃO | N10: =N11+N12 -> 0
A11: A1 - MOBILIZAÇÃO (PFP-XII) | N11: 0
A12: A2 - DESMOBILIZAÇÃO (PFP-XII) | N12: 0
A13: MÃO-DE-OBRA
A14: B - TOTAL DE SALÁRIO DA EQUIPE | N14: 0
A15: B1 - TOTAL SALÁRIOS DA EQUIPE COM VÍNCULO (PFP-I) | N15: 0
A16: B2 - TOTAL SALÁRIO DO AUTÔNOMO (PFP-I) | N16: ='PFP_I Equip Proj'!E40 -> 0
A17: B3 - TRANSP., ALIMENT. E MORADIA CONFORME CLT (SOMATÓRIO DA LINHA "C" DOS (PFP-XI)
A18: C - TOTAL DE ENCARGOS SOCIAIS | N18: 0
A19: C1 - 77,25% INCIDENTE SOBRE O ITEM B1 | N19: 0
A20: C2 - 20% INCIDENTE SOBRE O ITEM B2 | N20: ='PFP_I Equip Proj'!G40 -> 0
A21: OUTRAS DESPESAS
A22: D - DESPESAS COM VIAGENS (PFP-II) | N22: 0
A23: E - SERVIÇOS GRÁFICOS (PFP-III) | N23: 0
A24: F - DESPESAS GERAIS (PFP-IV) | N24: 0
A25: TOTAL DE OUTRAS DESPESAS | N25: 0
A26: CUSTOS INDIRETOS | N26: 0
A27: G - CUSTO DE ADMINISTRAÇÃO - (12% DO ITEM B) (PFP-XIII) | N27: 0
A28: H - REMUNERAÇÃO DA EMPRESA (LUCRO) - (8% DOS ITENS A+B+C+D+E+F+G) | N28: 0
A29: I - DESPESAS FISCAIS - (13,96% = DF' DOS ITENS A+B+C+D+E+F+G+H) (PFP-XIV) | N29: =0.1396*('PFP em branco'!N10+'PFP em branco'!N14+'PFP em branco'!N18+'PFP em branco'!N22+'PFP em branco'!N23+'PFP em branco'!N24+'PFP em branco'!N27+'PFP em branco'!N28) -> 0
A30: SUB-TOTAL TOTAL DOS SERVIÇOS | N30: =N8+N26 -> 0
A31: SERVIÇOS DE CAMPO
A32: J1 - SERVIÇOS TOPOGRÁFICOS (PFP-V) | N32: 0
A33: J2 - SERVIÇOS GEOTÉCNICOS (PFP-VII) | N33: 0
A34: J3 - SERVIÇOS AUXILIARES (PFE_I) | N34: 0
A35: TOTAL DOS SERVIÇOS DE CAMPO | N35: =SUM(N32:O34) -> 0
A36: TOTAL DA PROPOSTA | N36: =N30+N35 -> 0
A37: NOME DO INFORMANTE: | J37: QUALIFICAÇÃO:
A39: ASSINATURA: | N39: DATA:
A41: OBSERVAÇÃO:
A42: ESTE ORÇAMENTO FOI CALCULADO COM OS SEGUINTES % MÁXIMOS DE ENCARGOS SOCIAIS E CUSTOS INDIRETOS:
A43: 1. ENCARGOS SOCIAIS DE AUTÔNOMOS = 20% SOBRE O SALÁRIO MENSAL
A44: 2. ENCARGOS SOCIAIS DA EQUIPE COM VÍNCULO = 77,25% SOBRE O SALÁRIO MENSAL
A45: 3. CUSTO DE ADMINISTRAÇÃO = 12% SOBRE O TOTAL DE SALÁRIOS DA EQUIPE (B1 + B2)
A46: 4. REMUNERAÇÃO DA EMPRESA (LUCRO) = 8% SOBRE OS ITENS DE CUSTOS DIRETOS + CUSTO DE ADMINISTRAÇÃO
A47: 5. DF = A SOMA DOS TRIBUTOS (EX: ISS 3,00 + PIS 1,65 + COFINS 7,60 = 12,25%)
A48: 6. DF' = UTILIZADO NA LINHA "I" SERÁ CALCULADO APLICANDO A SEGUINTE FÓRMULA:
A49: DF' = { [ 1 / ( 1 - DF) ] - 1 } x 100
A50: DF' = { [ 1 / ( 1 - 0,1225 ) ] - 1 } x 100
A51: DF' = 0,1396 ou 13,96%

Sheet PFP_I Equip Proj
A1: SALÁRIOS E ENCARGOS DA EQUIPE | G1: CODIGO:
G2: PFP-I
A3: NOME DA CONSULTORA:
A5: PROJETO: | C5: OBJETO: | G5: EDITAL:
A6: =PFP!A6 -> Januária | C6: =PFP!F6 -> Projeto do SAA de comunidades
A7: SÍMBOLO | B7: TOTAL DE | C7: SALÁRIO | D7: TOTAL CUSTO | E7: TOTAL CUSTO | F7: TOTAL CUSTO | G7: TOTAL CUSTO
B8: HOMENS/MÊS | C8: MENSAL (R$) | D8: SALÁRIOS DE | E8: SALÁRIOS DE | F8: E. SOCIAIS DE | G8: E. SOCIAIS DE
D9: B1 | E9: B2 | F9: B1 | G9: B2
A11: C | B11: 0 | D11: =B11*C11 -> 0 | F11: =D11*0.2 -> 0
A13: P0 | B13: 0 | D13: =B13*C13 -> 0 | F13: =D13*'PFP_XV Det_ Enc_ Soc_'!$F$36 -> 0
A15: P1 | B15: 3 | D15: =B15*C15 -> 0 | F15: =D15*'PFP_XV Det_ Enc_ Soc_'!$F$36 -> 0
A17: P2 | B17: 0 | D17: =B17*C17 -> 0 | F17: =D17*'PFP_XV Det_ Enc_ Soc_'!$F$36 -> 0
A19: P3 | B19: 3 | D19: =B19*C19 -> 0 | F19: =D19*'PFP_XV Det_ Enc_ Soc_'!$F$36 -> 0
J20: =PFP!R35 -> 0
A21: T0 | B21: 0 | D21: =B21*C21 -> 0 | F21: =D21*'PFP_XV Det_ Enc_ Soc_'!$F$36 -> 0
A23: T1 | B23: 1.5 | D23: =B23*C23 -> 0 | F23: =D23*'PFP_XV Det_ Enc_ Soc_'!$F$36 -> 0
A25: T2 | B25: 0 | D25: =B25*C25 -> 0 | F25: =D25*'PFP_XV Det_ Enc_ Soc_'!$F$36 -> 0
A27: T3 | B27: 0 | D27: =B27*C27 -> 0 | F27: =D27*'PFP_XV Det_ Enc_ Soc_'!$F$36 -> 0
A29: A1 | B29: 1 | D29: =B29*C29 -> 0 | F29: =D29*'PFP_XV Det_ Enc_ Soc_'!$F$36 -> 0
A31: A2 | B31: 0 | D31: =B31*C31 -> 0 | F31: =D31*'PFP_XV Det_ Enc_ Soc_'!$F$36 -> 0
A33: A3 | B33: 0 | D33: =B33*C33 -> 0 | F33: =D33*'PFP_XV Det_ Enc_ Soc_'!$F$36 -> 0
A40: TOTAIS | B40: =SUM(B10:B39) -> 8.5 | D40: =SUM(D11:D39) -> 0 | E40: =SUM(E11:E39) -> 0 | F40: =SUM(F11:F39) -> 0 | G40: =SUM(G11:G39) -> 0
A41: NOME DO INFORMANTE: | F41: QUALIFICAÇÃO:
A43: ASSINATURA: | G43: DATA:
A45: LEGENDA:
A46: B1 - SALÁRIOS DA EQUIPE EM DIAS ÚTEIS
A47: B2- SALÁRIO DO AUTÔNOMO (CONSULTOR)
A48: OBSERVAÇÃO:
A49: UTILIZAR OS SÍMBOLOS DO FOR PPT-II - EQUIPE TÉCNICA
A50: DETALHAR OS ENCARGOS SOCIAIS NO FOR PPF-XV
A51: NÚMERO DE HORAS TRABALHADAS POR MÊS = 176 (CENTO E SETENTA E SEIS)

Sheet PFP_II Desp Viagens
A1: DESPESAS COM VIAGENS | M1: CODIGO:
M2: PFP-II
A3: NOME DA CONSULTORA:
A5: PROJETO: | D5: OBJETO: | M5: EDITAL:
A6: ='PFP_I Equip Proj'!A6 -> Januária | F6: ='PFP_I Equip Proj'!C6 -> Projeto do SAA de comunidades
B7: ROTEIRO | C7: PASSAGENS | I7: DIÁRIAS
A8: EQUIPE | C8: AÉREAS | F8: TERRESTRES | I8: NÍVEL SUPERIOR | L8: NÍVEL TÉC/AUX/APOIO
C9: QUANT. | D9: CUSTO (R$) | E9: TOTAL (R$) | F9: QUANT. | G9: CUSTO (R$) | H9: TOTAL (R$) | I9: QUANT. | J9: CUSTO (R$) | K9: TOTAL (R$) | L9: QUANT. | M9: CUSTO (R$) | N9: TOTAL (R$)
A10: P0 | B10: BH/MOC/BH | C10: ='PFP_I Equip Proj'!B13 -> 0 | E10: =C10*D10 -> 0 | F10: 0 | G10: 0 | H10: =F10*G10 -> 0 | I10: =C10*1 -> 0 | K10: =I10*J10 -> 0 | L10: 0 | M10: 0 | N10: =L10*M10 -> 0
A11: P1 | B11: BH/MOC/BH | E11: 0 | F11: 0 | G11: 0 | H11: =F11*G11 -> 0 | K11: =I11*J11 -> 0 | L11: 0 | M11: 0 | N11: =L11*M11 -> 0
A12: P2 | B12: BH/MOC/BH | E12: 0 | H12: 0 | K12: 0 | L12: 0 | M12: 0 | N12: =L12*M12 -> 0
A13: P3 | B13: BH/MOC/BH | C13: ='PFP_I Equip Proj'!B16 -> 0 | E13: 0 | H13: 0 | I13: =C13*2 -> 0 | K13: 0
A14: P0 | B14: BH/JANUÁRIA/BH | E14: 0 | H14: 0 | I14: 0 | K14: 0
A15: P1 | B15: BH/JANUÁRIA/BH | E15: 0 | H15: 0 | K15: 0 | L15: 0 | M15: 0 | N15: =L15*M15 -> 0
A16: P2 | B16: BH/JANUÁRIA/BH | E16: 0 | H16: 0 | I16: 0 | K16: 0
A17: P3 | B17: BH/JANUÁRIA/BH | E17: 0 | H17: 0 | K17: 0
A18: P0 | B18: TAXI | F18: =C10*4 -> 0 | H18: 0
A19: P1 | B19: TAXI | F19: =C11*4 -> 0 | H19: 0
A20: P2 | B20: TAXI | F20: =C12*4 -> 0 | H20: 0
A21: P3 | B21: TAXI | F21: =C13*4 -> 0 | H21: 0
H22: 0
A29: TOTAIS COM PASSAGENS/DIÁRIAS | C29: =SUM(E10:E28) -> 0 | F29: =SUM(H10:H28) -> 0 | I29: =SUM(K10:K28) -> 0 | L29: =SUM(N10:N18) -> 0
A30: TOTAL DE DESPESAS COM VIAGENS | L30: =C29+F29+I29+L29 -> 0
A32: NOME DO INFORMANTE: | G32: QUALIFICAÇÃO:
A33: ASSINATURA: | M33: DATA:
A34: OBSERVAÇÃO:
A35: 1 - INCLUIR AS DESPESAS COM VIAGENS DA EQUIPE DURANTE A EXECUÇÃO DOS SERVIÇOS, INCLUSIVE PARA AS REUNIÕES COM A CODEVASF.
A36: 2 - NÂO INCLUIR AS VIAGENS COM MOBILIZAÇÃO/DESMOBILIZAÇÃO DA EQUIPE
A37: 3 - AS DIÁRIAS COBREM DESPESAS COM TAXI, ALIMENTAÇÃO E HOSPEDAGEM
A38: 4 - TRANSFERIR O TOTAL DAS DESPESAS COM VIAGENS PARA A LINHA "D" DO (FOR PPF-I)
A39: 5 - A LICITANTE DEVERÁ ADAPTAR OS ROTEIROS E VALORES PARA AS SUAS CONDIÇÕES.

Sheet PFP_III Ser Graf
A1: SERVIÇOS GRÁFICOS | G1: CODIGO:
G2: PFP-III
A3: NOME DA CONSULTORA:
A5: PROJETO: | C5: OBJETO: | G5: EDITAL:
A6: ='PFP_II Desp Viagens'!A6:C6 -> Januária | C6: ='PFP_I Equip Proj'!C6 -> Projeto do SAA de comunidades
A7: DISCRIMINAÇÃO | D7: EXEMPLARES | E7: Nº DE | F7: CUSTOS (R$)
E8: VIAS | F8: UNITÁRIO | G8: TOTAL
A10: Relatório de Reconhecimento | G10: =D10*E10*F10 -> 0
A11: Cadastro | G11: 0
A12: Estudo de concepção | G12: 0
A13: Minuta do projeto básico | G13: 0
A14: Projeto básico final | G14: 0
A15: Orçamento com quantitativos e especificações | G15: 0
A16: Detalhamentos elétricos e estruturais | G16: 0
A17: Estudos Ambientais | G17: 0
A33: SUBTOTAL | G33: =SUM(G10:G32) -> 0
A34: RESERVA DE 10% | G34: =10%*G33 -> 0
A35: TOTAL DE SERVIÇOS GRÁFICOS | G35: =G33+G34 -> 0
A36: NOME DO INFORMANTE: | D36: QUALIFICAÇÃO:
A38: ASSINTATURA: | F38: DATA:
A40: OBSERVAÇÃO:
A41: 1 - CORREPONDEM AOS SERVIÇOS COM IMPRESSÃO DOS RELATÓRIOS.
A42: 2 - RESERVA DE 10% CALCULADO SOBRE O SUBTOTAL PARA IMPRESSÃO DE RELATÓRIOS ESPECÍFICOS EXCEPCIONALMENTE
A43: SOLICITADO PELA CODEVASF

Sheet PFP_IV Desp Gerais
A1: DESPESAS GERAIS | H1: CODIGO:
H2: PFP-IV
A3: NOME DA CONSULTORA:
A5: PROJETO: | C5: OBJETO: | H5: EDITAL:
A6: ='PFP_III Ser Graf'!A6 -> Januária | C6: ='PFP_III Ser Graf'!C6 -> Projeto do SAA de comunidades
A7: DISCRIMINAÇÃO | E7: UNID. | F7: QUANT. | G7: CUSTOS (R$)
G8: UNITÁRIO | H8: TOTAL
A10: Locação - Veículo utilitário (1.4 ou superior) ou similar, incluindo despesas com combustível, óleos, manutenção, licenciamento, seguros, impostos | E10: MÊS | H10: =F10*G10 -> 0
A12: Serviços de Computação | E12: MÊS | H12: =F12*G12 -> 0
A14: Comunicações (Internet + Telefone (fixo)) | E14: MÊS | H14: =F14*G14 -> 0
A42: TOTAL DE DESPESAS GERAIS | H42: =SUM(H10:H19) -> 0
A43: NOME DO INFORMANTE: | F43: QUALIFICAÇÃO:
A45: ASSINATURA: | G45: DATA:
A47: OBSERVAÇÃO:
A48: DESPESAS COM ALUGUEL E MANUTENÇÃO DE VEÍCULOS, SERVIÇOS DE COMPUTAÇÃO E COMUNICAÇÃO (MALOTE, CORREIO ETC.)

Sheet PFP_V Topografia
A1: SERVIÇOS TOPOGRÁFICOS | G1: CODIGO:
G2: PFP-V
A3: NOME DA CONSULTORA:
A5: PROJETO: | C5: OBJETO: | G5: EDITAL:
A6: ='PFP_IV Desp Gerais'!A6 -> Januária | C6: ='PFP_IV Desp Gerais'!C6:G6 -> Projeto do SAA de comunidades
A7: DISCRIMINAÇÃO | D7: UNID. | E7: QUANT. | F7: PREÇOS (R$)
F8: UNITÁRIO | G8: TOTAL
A9: 1 - SERVIÇO DE LEVANTAMENTO PLANIALTIMÉTRICO SEMI-CADASTRAL
A11: Equipe de Saneamento | D11: dia | G11: =PRODUCT(E11*F11) -> 0
A45: TOTAL DE SERVIÇOS TOPOGRÁFICOS | G45: =SUM(G10:G44) -> 0
A47: NOME DO INFORMANTE: | D47: QUALIFICAÇÃO:
A49: ASSINATURA: | F49: DATA:
A51: OBSERVAÇÃO:
A52: NO PREÇO DOS SERVIÇOS TOPOGRÁFICOS, PAGOS A PREÇOS UNITÁRIOS, INCLUEM OS CUSTOS DE MÃO-DE-OBRA,
A53: EQUIPAMENTOS E VEÍCULOS UTILIZADOS NA SUA EXECUÇÃO, BEM COMO CUSTOS DE ADMINISTRAÇÃO E DESPESAS FISCAIS

Sheet PFP_VII Geotecnia
A1: SERVIÇOS GEOTÉCNICOS | G1: CODIGO:
G2: PFP-VII
A3: NOME DA CONSULTORA:
A5: PROJETO: | C5: OBJETO: | G5: EDITAL:
A6: ='PFP_V Topografia'!A6 -> Januária | C6: ='PFP_V Topografia'!C6:F6 -> Projeto do SAA de comunidades
A7: DISCRIMINAÇÃO | D7: UNID. | E7: QUANT. | F7: PREÇOS (R$)
F8: UNITÁRIO | G8: TOTAL
A9: 1. - SONDAGEM MISTA
A10: 1.1 - Sondagem Rotativa
A11: - Mobilização e desmobilização de equipamentos | D11: equip | G11: =E11*F11 -> 0
A12: - Em granitos, gnaisses, quartzitos e rochas afins | G12: 0
A13: - Ø N | D13: m | G13: 0
A14: - Ø B | D14: m | G14: 0
A15: - Ø N (sondagem em solo) | D15: m | G15: 0
A16: - Deslocamento e instalação do equipamento | G16: 0
A17: - 0 a 200 metros | D17: unid. | G17: 0
A18: - 201 a 500 metros | D18: unid. | G18: 0
A19: - Acima de 500 metros | D19: unid. | G19: 0
A20: 1.2 - Sondagem a Percussão | G20: 0
A21: - Mobilização e desmobilização de equipamentos | D21: equip | E21: 0 | G21: 0
A22: - Sondagem à percussão com SPT | D22: m | E22: 0 | G22: 0
A23: - Deslocamento e instalação de equipamento | G23: 0
A24: - 0 a 200 metros | D24: unid. | E24: 0 | G24: 0
A25: - 201 a 500 metros | D25: unid. | E25: 0 | G25: 0
A26: - Acima de 500 metros | D26: unid. | E26: 0 | G26: 0
A27: 2. - SONDAGEM SÍSMICA DE REFRAÇÃO | D27: km | G27: 0
A28: 3. - SONDAGEM A TRADO (4") | D28: m | G28: 0
A29: 4. - POÇOS DE INSPEÇÃO | D29: m | G29: 0
A30: 5. - ENSAIOS | G30: 0
A31: 5.1 - Ensaios em solos | G31: 0
A32: 5.1.1 - Umidade Natural | D32: ensaio | E32: 0 | G32: 0
A33: 5.1.2 - Densidade Natural | D33: ensaio | E33: 0 | G33: 0
A34: 5.1.3 - Limite de Liquidez | D34: ensaio | E34: 0 | G34: 0
A35: 5.1.4 - Limite de Plasticidade | D35: ensaio | E35: 0 | G35: 0
A36: 5.1.5 - Granulometria por Peneiramento | D36: ensaio | E36: 0 | G36: 0
A37: 5.1.6 - Granulometria por Sedimentação | D37: ensaio | E37: 0 | G37: 0
A38: 5.1.7 - Ensaio compactação Proctor Normal | D38: ensaio | E38: 0 | G38: 0
A39: 5.1.8 - Ensaio compactação Proctor Intermediario | D39: ensaio | G39: 0
A40: 5.1.9 - Ensaio compactação Proctor Modificado | D40: ensaio | G40: 0
A41: 5.1.9.1 | B41: Indice de Suporte California ISC c/3 corpos de prova | D41: ensaio | G41: 0
A42: 5.1.9.2 | B42: Indice de Suporte California ISC c/5 corpos de prova | D42: ensaio | G42: 0
A43: 5.1.8 - Massa Especifica Real dos Grãos | D43: ensaio | E43: 0 | G43: 0
A44: 5.1.9 - Adensamento Oedométrico | D44: ensaio | G44: 0
A45: 5.1.10 - Triaxial (UU) não consolidado não drenado | D45: ensaio | G45: 0
A46: 5.1.11 - Triaxial (CU) consolidado - não drenado | D46: ensaio | G46: 0
A47: 5.1.12 - Expansão | G47: 0
A48: 5.1.12..1Ensaio de colapsividade em anéis de adensamento | D48: =D46 -> ensaio | G48: 0
A49: 5.1.12..2Determinação da pressão de expansão | D49: =D48 -> ensaio | G49: 0
A50: 5.1.13 - Dispersão: | G50: 0
A51: 5.1.13.1 - Granulometria Comparativa | D51: ensaio | G51: 0
A52: 5.1.13.2 - Crumb Test | D52: ensaio | G52: 0
A53: 5.1.14. Infiltração | D53: ensaio | G53: 0
A54: 5.1.15 Ensaio de Perda d''agua (05 estágios) | D54: ensaio | G54: 0
A55: 5.1.16 - Análise da Areia: | G55: 0
A56: 5.1.16.1 Análise Química da Areia teor de mat organica | D56: ensaio | G56: 0
A57: 5.1.16.2 Equivalente de Areia | D57: ensaio | G57: 0
A58: 5.1.17- Mineralogia | D58: ensaio | G58: 0
A59: 5.1.18 - Abrasão "Los Angeles " | D59: ensaio | G59: 0
B60: Indice de lamelaridade | D60: ensaio | G60: 0
A61: 5.1.19 - Reatividade Potencial | D61: ensaio | G61: 0
A62: 5.1.20 - Permeabilidade vertical de carga variavel | D62: ensaio | G62: 0
A63: 5.1.21 - Permeabilidade "in situ" | D63: ensaio | G63: 0
A64: 5.1.22 - Índice de Suporte California ISC | D64: ensaio | G64: 0
A66: TOTAL DE SERVIÇOS GEOTÉCNICOS | G66: =SUM(G10:G65) -> 0
A67: NOME DO INFORMANTE: | D67: QUALIFICAÇÃO:
A69: ASSINATURA: | F69: DATA:
A71: OBSERVAÇÃO:
A72: NO PREÇO DOS SERVIÇOS GEOTÉCNICOS, PAGOS A PREÇOS UNITÁRIOS, INCLUEM OS CUSTOS DE MÃO-DE-OBRA,
A73: EQUIPAMENTOS, VEÍCULOS E LABORATÓRIOS UTILIZADOS NA SUA EXECUÇÃO, BEM COMO CUSTOS DE ADMINISTRAÇÃO E
A74: DESPESAS FISCAIS.

Sheet PFP_X Cronog Financ
A1: CRONOGRAMA FINANCEIRO | H1: CODIGO:
H2: PFP-X
A3: NOME DA CONSULTORA:
A5: PROJETO: | C5: OBJETO: | H5: EDITAL:
A6: ='PFP_VII Geotecnia'!A6:B6 -> Januária | C6: ='PFP_VII Geotecnia'!C6:F6 -> Projeto do SAA de comunidades
A7: Nº | B7: TAREFA | C7: RELATÓRIO/SERVIÇO DE CAMPO | F7: DIAS CORRIDOS | G7: SERVIÇOS PAGOS
G8: A PREÇO GLOBAL(R$) | H8: A PREÇO UNITÁRIO (R$)
A9: 1
A10: 2
A11: 3
A12: 4
A13: 5
A14: 6
A15: 7
A16: 8
A17: 9
A18: 10
A19: 11
A20: 12
A21: 13
A22: 14
A39: TOTAL DA FOLHA | G39: =SUM(G9:G38) -> 0 | H39: =SUM(H9:H38) -> 0
A40: NOME DO INFORMANTE: | D40: QUALIFICAÇÃO:
A42: ASSINATURA: | F42: DATA:
A44: OBSERVAÇÃO:
A45: O CRONOGRAMA FINANCEIRO DEVERÁ ESTAR COMPATÍVEL COM O CRONOGRAMA FÍSICO (FOR PPT-V)

Sheet PFP_X Cronog Financ preenchido
A1: CRONOGRAMA FINANCEIRO | H1: CODIGO:
H2: PFP-X
A3: NOME DA CONSULTORA:
A5: PROJETO: | C5: OBJETO: | H5: EDITAL:
A6: ='PFP_VII Geotecnia'!A6:B6 -> Januária | C6: ='PFP_VII Geotecnia'!C6:F6 -> Projeto do SAA de comunidades
A7: Nº | B7: TAREFA | C7: RELATÓRIO/SERVIÇO DE CAMPO | F7: PRAZO DE EXECUÇÃO DIAS CORRIDOS | G7: SERVIÇOS PAGOS
G8: A PREÇO GLOBAL(R$) | H8: A PREÇO UNITÁRIO (R$)
A9: 1 | B9: DIAGNÓSTICO E ESTUDO DE ALTERNATIVAS (60%) | G9: 0.6
C10: E 1.1 – Serviços Topográficos (30%) | G10: =G9*30% -> 0.18
C11: E 1.2 – Serviços Geotécnicos (30%) | G11: =G9*30% -> 0.18
C12: E 1.3 – Cadastros (10%) | G12: =G9*10% -> 0.06
C13: E 1.4 – Estudo de Concepção (15%) | G13: =G9*15% -> 0.09
C14: E 1.5 – Relatório do diagnóstico (15%) | G14: =G9*15% -> 0.09
C15: TOTAL | G15: =SUM(G10:G14) -> 0.6
A18: 2 | B18: PROJETO BÁSICO DE ENGENHARIA (40%) | G18: 0.4
C19: E 2.1 – Estudos Ambientais (10%) | G19: =G18*10% -> 0.04
C20: E 2.2 – Projetos Elétricos e Estruturais (10%) | G20: =G18*10% -> 0.04
C21: E 2.3 – Orçamento (10%) | G21: =G18*10% -> 0.04
C22: E 2.4 – Minuta do Projeto Básico (40%) | G22: =G18*40% -> 0.16
C23: E 2.5 – Projeto Básico Final (30%) | G23: =G18*30% -> 0.12
C24: TOTAL | G24: =SUM(G19:G23) -> 0.4
A40: TOTAL DA FOLHA | G40: =SUM(G9:G39) -> 3 | H40: =SUM(H9:H39) -> 0
A41: NOME DO INFORMANTE: | D41: QUALIFICAÇÃO:
A43: ASSINATURA: | F43: DATA:
A45: OBSERVAÇÃO:
A46: O CRONOGRAMA FINANCEIRO DEVERÁ ESTAR COMPATÍVEL COM O CRONOGRAMA FÍSICO (FOR PPT-V)

Sheet PFP_XIII_ Det_ custos Adm_
A1: DETALHAMENTO DO CUSTO DE ADMINISTRAÇÃO | G1: CODIGO:
G2: PFP-XIII
A3: NOME DA CONSULTORA:
A5: PROJETO: | C5: OBJETO: | G5: EDITAL:
A6: ='PFP_X Cronog Financ'!A6:B6 -> Januária | C6: ='PFP_X Cronog Financ'!C6:G6 -> Projeto do SAA de comunidades
A7: DISCRIMINAÇÃO | F7: VALORES
F8: % | G8: R$
A9: 1 | B9: Custos da equipe da administração central da empresa consultora ( diretoria, pessoal técnico de apoio e pessoal administrativo não diretamente vinculado à prestação dos serviços) | G9: =F9*PFP!$N$14 -> 0
A10: 2 | B10: Outras despesas que afetam o custo de produção como: avaliação do concreto com ensaios, treinamento, biblioteca, programa de qualidade, auditoria interna e externa | G10: =F10*PFP!$N$14 -> 0
A11: 3 | B11: Despesas com aluguéis, comunicação, manutenção e transporte não diretamente relacionados com o custo direto dos serviços | G11: =F11*PFP!$N$14 -> 0
A12: 4
A13: 5
B36: TOTAIS DO CUSTO DE ADMINISTRAÇÃO | F36: =SUM(F9:F35) -> 0 | G36: =SUM(G9:G35) -> 0
A38: NOME DO INFORMANTE: | D38: QUALIFICAÇÃO:
A39: ASSINATURA: | F39: DATA:
A40: OBSERVAÇAO:

Sheet PFP_XIV Det_ Desp Fiscais
A1: DETALHAMENTO DE DESPESAS FISCAIS | H1: CODIGO:
H2: PFP-XIV
A3: NOME DA CONSULTORA:
A5: PROJETO: | C5: OBJETO: | H5: EDITAL:
A6: ='PFP_XIII_ Det_ custos Adm_'!A6 -> Januária | C6: ='PFP_XIII_ Det_ custos Adm_'!C6 -> Projeto do SAA de comunidades
A7: DISCRIMINAÇÃO | F7: VALORES
F8: DF % | G8: DF' % | H8: R$
A10: 1 - ISS | G10: =(1/(1-$F$37/100))*F10 -> 0 | H10: =F10/($F$10+$F$11+$F$12)*$H$37 -> 
A11: 2 - PIS | G11: =(1/(1-$F$37/100))*F11 -> 0 | H11: =F11/($F$10+$F$11+$F$12)*$H$37 -> 
A12: 3 - COFINS | G12: =(1/(1-$F$37/100))*F12 -> 0 | H12: =F12/($F$10+$F$11+$F$12)*$H$37 -> 
A37: TOTAIS DE DESPESAS FISCAIS | F37: =F10+F11+F12 -> 0 | G37: =G10+G11+G12 -> 0 | H37: =PFP!N29 -> 0
A38: NOME DO INFORMANTE: | D38: QUALIFICAÇÃO:
A40: ASSINATURA: | F40: DATA:
A42: Observação:
A43: As despesas fiscais (DF) incidem sobre o total da fatura e não sobre os custos incorridos. Portanto aplicar a seguinte fórmula:
A44: DF = { [ 1 / ( 1 - DF ) ] - 1 } x 100
A45: ou seja, para o valor máximo de 12,25%, o valor a ser aplicado na composição dos preços será:
A46: DF = { [ 1 / ( 1 - 0,1225 ) ] - 1 } x 100
A47: DF =0,1396 ou 13,96%

Sheet PFP_XV Det_ Enc_ Soc_
A1: DETALHAMENTO DOS ENCARGOS SOCIAIS | G1: CODIGO:
G2: PFP-XV
A3: NOME DA CONSULTORA:
A5: PROJETO: | C5: OBJETO: | G5: EDITAL:
A6: ='PFP_XIV Det_ Desp Fiscais'!A6:B6 -> Januária | C6: ='PFP_XIV Det_ Desp Fiscais'!C6:G6 -> Projeto do SAA de comunidades
A7: DISCRIMINAÇÃO | F7: VALORES
F8: % | G8: R$
A9: A | B9: ENCARGOS SOCIAIS BÁSICOS
A10: A1 | B10: Seconci | G10: =F10*'PFP_I Equip Proj'!$D$40 -> 0
A11: A2 | B11: INSS | G11: =F11*'PFP_I Equip Proj'!$D$40 -> 0
A12: A3 | B12: FGTS | G12: =F12*'PFP_I Equip Proj'!$D$40 -> 0
A13: A4 | B13: Incra | G13: =F13*'PFP_I Equip Proj'!$D$40 -> 0
A14: A5 | B14: Salário Educação | G14: =F14*'PFP_I Equip Proj'!$D$40 -> 0
A15: A5 | B15: Sebrae | G15: =F15*'PFP_I Equip Proj'!$D$40 -> 0
A16: A7 | B16: Seguro contra acidente | G16: =F16*'PFP_I Equip Proj'!$D$40 -> 0
A17: A8 | B17: Senai | G17: =F17*'PFP_I Equip Proj'!$D$40 -> 0
A18: A9 | B18: Sesi | G18: =F18*'PFP_I Equip Proj'!$D$40 -> 0
A19: SUBTOTAL DE "A" | F19: =ROUND(SUM(F10:F18),4) -> 0 | G19: =SUM(G10:G18) -> 0
A21: B | B21: ENCARGOS SOCIAIS QUE RECEBEM INCIDÊNCIA DE "A"
A22: B1 | B22: 13º Salário | G22: =F22*'PFP_I Equip Proj'!$D$40 -> 0
A23: SUBTOTAL DE "B" | F23: =SUM(F22:F22) -> 0 | G23: =SUM(G22:G22) -> 0
A25: C | B25: ENCARGOS SOCIAIS QUE NÃO RECEBEM INCIDÊNCIA DE "A"
A26: C1 | B26: Depósito Rescisão Sem Justa Causa | G26: =F26*'PFP_I Equip Proj'!$D$40 -> 0
A27: C2 | B27: Férias | G27: =F27*'PFP_I Equip Proj'!$D$40 -> 0
A28: C3 | B28: Aviso Prévio | G28: =F28*'PFP_I Equip Proj'!$D$40 -> 0
A29: SUBTOTAL DE "C" | F29: =ROUND(SUM(F26:F28),4) -> 0 | G29: =SUM(G26:G28) -> 0
A31: D | B31: REINCIDÊNCIAS
A32: D1 | B32: Reincidência de "A" sobre "B" - A% x B% | F32: =ROUND((F19*F23),4) -> 0 | G32: =F32*'PFP_I Equip Proj'!$D$40 -> 0
A33: D2 | B33: Reincidência de "A" sobre "C3" - A% x C3% | F33: =F28*F19 -> 0 | G33: =F33*'PFP_I Equip Proj'!$D$40 -> 0
A34: SUBTOTAL DE "D" | F34: =ROUND((F33+F32),4) -> 0 | G34: =SUM(G33:G33) -> 0
A36: TOTAIS DE ENCARGOS SOCIAIS | F36: =ROUND(F19+F23+F29+F34,4) -> 0 | G36: =G19+G23+G29+G34 -> 0
A37: NOME DO INFORMANTE: | D37: QUALIFICAÇÃO:
A38: ASSINATURA: | F38: DATA:
A39: Observação:

Sheet PFE_I
A1: SERVIÇOS AUXILIARES | G1: CODIGO:
G2: PFE-I
A3: NOME DA CONSULTORA:
A5: PROJETO: | C5: OBJETO: | G5: EDITAL:
A6: ='PFP_IV Desp Gerais'!A6 -> Januária | C6: ='PFP_IV Desp Gerais'!C6:G6 -> Projeto do SAA de comunidades
A7: DISCRIMINAÇÃO | D7: UNID. | E7: QUANT. | F7: PREÇOS (R$)
F8: UNITÁRIO | G8: TOTAL
A11: Análise fisico-química e bacteriológica da fonte hídirca | D11: cj | G11: =PRODUCT(E11*F11) -> 0
A12: Teste de vazão de poços profundos - 24 horas | D12: u | G12: =PRODUCT(E12*F12) -> 0
A45: TOTAL DE SERVIÇOS | G45: =SUM(G10:G44) -> 0
A47: NOME DO INFORMANTE: | D47: QUALIFICAÇÃO:
A49: ASSINATURA: | F49: DATA:
A51: OBSERVAÇÃO:

Sheet PTP_V Cronog Físico em Branco
A1: CRONOGRAMA FÍSICO | W1: CODIGO:
W2: PTP-V
A3: NOME DA CONSULTORA:
A5: PROJETO: | H5: OBJETO: | Y5: EDITAL:
A6: Januária | H6: =PFP!F6 -> Projeto do SAA de comunidades
A7: SEQ | B7: COD. | C7: TAREFA/ATIVIDADE | G7: DURAÇÃO | H7: DATA | J7: MÊS1 | K7: MÊS2 | L7: MÊS3 | M7: MÊS4 | N7: MÊS5 | O7: MÊS6 | Q7: MÊS7 | S7: MÊS8 | U7: MÊS9 | W7: MÊS10 | Y7: MÊS11 | AA7: MÊS12
G8: (DIAS) | H8: INIC. | I8: FIM
A9: 1 | B9: E1 | C9: DIAGNÓSTICO E ESTUDO DE ALTERNATIVAS
A10: 1 | B10: E1.1 | C10: Serviços Topográficos
A11: 1 | B11: E1.2 | C11: Serviços Geotécnicos
A12: 1 | B12: E1.3 | C12: Cadastros
A13: 1 | B13: E1.4 | C13: Estudo de Concepção
A14: 1 | B14: E1.5 | C14: Relatório do diagnóstico
A16: 2 | B16: E2 | C16: PROJETO BÁSICO DE ENGENHARIA (40%)
A17: 2 | B17: E2.1 | C17: Estudos Ambientais
A18: 2 | B18: E2.2 | C18: Projetos Elétricos e Estruturais
A19: 2 | B19: E2.3 | C19: Orçamento
A20: 2 | B20: E2.4 | C20: Minuta do Projeto Básico
A21: 2 | B21: E2.5 | C21: Projeto Básico Final
A41: NOME DO INFORMANTE: | M41: QUALIFICAÇÃO:
A43: ASSINATURA: | T43: DATA:
A45: LEGENDA:

Sheet PTP_V Cronog Físico
A1: CRONOGRAMA FÍSICO | W1: CODIGO:
W2: PTP-V
A3: NOME DA CONSULTORA:
A5: PROJETO: | H5: OBJETO: | Y5: EDITAL:
A6: Januária | H6: =PFP!F6 -> Projeto do SAA de comunidades
A7: SEQ | B7: COD. | C7: TAREFA/ATIVIDADE | G7: DURAÇÃO | H7: DATA | J7: MÊS1 | K7: MÊS2 | L7: MÊS3 | M7: MÊS4 | N7: MÊS5 | O7: MÊS6 | Q7: MÊS7 | S7: MÊS8 | U7: MÊS9 | W7: MÊS10 | Y7: MÊS11 | AA7: MÊS12
G8: (DIAS) | H8: INIC. | I8: FIM
A9: 1 | B9: E1 | C9: DIAGNÓSTICO E ESTUDO DE ALTERNATIVAS
A10: 1 | B10: E1.1 | C10: Serviços Topográficos
A11: 1 | B11: E1.2 | C11: Serviços Geotécnicos
A12: 1 | B12: E1.3 | C12: Cadastros
A13: 1 | B13: E1.4 | C13: Estudo de Concepção
A14: 1 | B14: E1.5 | C14: Relatório do diagnóstico
A16: 2 | B16: E2 | C16: PROJETO BÁSICO DE ENGENHARIA
A17: 2 | B17: E2.1 | C17: Estudos Ambientais
A18: 2 | B18: E2.2 | C18: Projetos Elétricos e Estruturais
A19: 2 | B19: E2.3 | C19: Orçamento
A20: 2 | B20: E2.4 | C20: Minuta do Projeto Básico
A21: 2 | B21: E2.5 | C21: Projeto Básico Final
A41: NOME DO INFORMANTE: | M41: QUALIFICAÇÃO:
A43: ASSINATURA: | T43: DATA:
A45: LEGENDA:
